fUSD/lending_fUSD_20240528
["ID","MTS","AMOUNT","RATE_DAILY","PERIOD"]
[328144460,1716930717779,-500.0,0.0003315,2]
[328144461,1716930717788,-1420.49,0.0003315,2]
[328144462,1716930717797,-1625.97,0.0003315,2]
[328144463,1716930717806,-647.0,0.0003315,2]
[328144464,1716930717816,-1101.55,0.0003315,2]
[328144465,1716930717825,-5271.34,0.0003315,2]
[328144466,1716930717835,-896.38,0.0003315,2]
[328144467,1716930717844,-4085.09,0.0003315,2]
[328144468,1716930717853,-3085.09,0.0003315,2]
[328144469,1716930717862,-1027.97,0.0003315,2]
[328144470,1716930717872,-221.79313022,0.0003315,2]
[328144471,1716930717881,-678.18,0.0003315,2]
[328144472,1716930717890,-607.8,0.0003315,2]
[328144473,1716930717901,-2974.94,0.0003315,2]
[328144474,1716930717910,-1217.15,0.0003315,2]
[328144475,1716930717919,-1190.26,0.0003315,2]
[328144476,1716930717929,-592.19,0.0003315,2]
[328144477,1716930717939,-4371.46,0.0003315,2]
[328144478,1716930717949,-1044.37,0.0003315,2]
[328144479,1716930717960,-707.12,0.0003315,2]
[328144480,1716930717970,-513.35,0.0003315,2]
[328144481,1716930717981,-1474.98,0.0003315,2]
[328144482,1716930717991,-3176.31,0.0003315,2]
[328144483,1716930718000,-687.58,0.0003315,2]
[328144484,1716930718009,-3513.06,0.0003315,2]
[328144485,1716930718019,-157.0624671,0.00033158,7]
[328144486,1716930718029,-150.0,0.00033158,2]
[328144487,1716930718039,-500.0,0.00033178,7]
[328144488,1716930718048,-157.06246718,0.0003318,30]
[328144489,1716930718057,-15090.77672741,0.00033189,2]
[328144490,1716930718067,-303.28,0.00033195,2]
[328144491,1716930718077,-764660.08038989,0.000332,2]
[328144492,1716930718087,-300.0,0.000332,2]
[328144493,1716930718096,-157.0624671,0.00033218,7]
[328144494,1716930718105,-157.0624671,0.00033218,10]
[328144495,1716930718114,-500.0,0.00033234,10]
[328144496,1716930718124,-2000.0,0.00033248,45]
[328144497,1716930718134,-150.0,0.0003327,7]
[328144498,1716930718143,-2985.26352396,0.00033276,7]
[328144499,1716930718152,-924.31299125,0.00033276,7]
[328144500,1716930718161,-2682.77573991,0.000333,120]
[328144501,1716930718169,-150.0,0.00033302,2]
[328144502,1716930718179,-150.0,0.00033353,2]
[328144503,1716930718188,-150.0,0.00033384,2]
[328144504,1716930718196,-150.0,0.0003339,2]
[328144505,1716930718206,-2000.0,0.000334,10]
[328144506,1716930718214,-2690.15437165,0.000334,2]
[328144507,1716930718223,-56974.72667682,0.000334,5]
[328144508,1716930718232,-2000.0,0.000334,10]
[328144509,1716930718241,-481.0,0.000334,18]
[328144510,1716930718249,-150.0,0.000334,22]
[328144511,1716930718258,-1500.0,0.000334,12]
[328144512,1716930718267,-909.32,0.00033424,2]
[328144513,1716930718276,-594.79,0.00033424,2]
[328144514,1716930718289,-569.9,0.00033424,2]
[328144515,1716930718298,-967.79,0.00033424,2]
[328144516,1716930718306,-1363.1,0.00033424,2]
[328144517,1716930718316,-667.3,0.00033424,2]
[328144518,1716930718328,-813.82,0.00033424,2]
[328144519,1716930718338,-670.95,0.00033424,2]
[328144520,1716930718347,-682.1,0.00033424,2]
[328144521,1716930718356,-613.37,0.00033424,2]
[328144522,1716930718366,-870.5,0.00033424,2]
[328144523,1716930718375,-746.34,0.00033424,2]
[328144524,1716930718384,-613.05,0.00033424,2]
[328144525,1716930718396,-758.6,0.00033424,2]
[328144526,1716930718405,-527.93,0.00033424,2]
[328144527,1716930718414,-535.29,0.00033424,2]
[328144528,1716930718423,-891.34,0.00033424,2]
[328144529,1716930718432,-556.26,0.00033424,2]
[328144530,1716930718441,-617.75,0.00033424,2]
[328144531,1716930718450,-655.52,0.00033424,2]
[328144532,1716930718459,-982.73,0.00033424,2]
[328144533,1716930718468,-879.75,0.00033424,2]
[328144534,1716930718478,-598.93,0.00033424,2]
[328144535,1716930718488,-607.01,0.00033424,2]
[328144536,1716930718497,-869.48,0.00033424,2]
[328144537,1716930718507,-515.25,0.00033424,2]
[328144538,1716930718516,-501.39,0.00033424,2]
[328144539,1716930718526,-1260.25,0.00033424,2]
[328144540,1716930718536,-554.17,0.00033424,2]
[328144541,1716930718546,-1185.96,0.00033424,2]
[328144542,1716930718556,-172.94,0.00033424,2]
[328144543,1716930718566,-512.07,0.00033424,2]
[328144544,1716930718577,-577.36,0.00033424,2]
[328144545,1716930718587,-544.23,0.00033424,2]
[328144546,1716930718596,-917.76,0.00033424,2]
[328144547,1716930718607,-715.45,0.00033424,2]
[328144548,1716930718617,-504.89,0.00033424,2]
[328144549,1716930718626,-311.33495883,0.00033424,2]
[328144550,1716930718636,-611.87,0.00033424,2]
[328144551,1716930718645,-824.89,0.00033424,2]
[328144552,1716930718655,-491.14103127,0.00033424,2]
[328144553,1716930718665,-739.81,0.00033424,2]
[328144554,1716930718673,-1320.63,0.00033424,2]
[328144555,1716930718682,-1793.48,0.00033424,2]
[328144556,1716930718692,-1192.64,0.00033424,2]
[328144557,1716930718701,-850.59,0.00033424,2]
[328144558,1716930718711,-550.9,0.00033424,2]
[328144559,1716930718720,-656.92,0.00033424,2]
[328144560,1716930718730,-806.35,0.00033424,2]
[328144561,1716930718739,-9315.09,0.00033424,2]
[328144562,1716930718748,-15327.51,0.00033424,2]
[328144563,1716930718758,-635.68,0.00033424,2]
[328144564,1716930718768,-3419.04,0.00033424,2]
[328144565,1716930718776,-1271.68,0.00033424,2]
[328144566,1716930718786,-525.9,0.00033424,2]
[328144567,1716930718795,-1237.95,0.00033424,2]
[328144568,1716930718804,-5036.02,0.00033424,2]
[328144569,1716930718813,-2402.16,0.00033424,2]
[328144570,1716930718823,-583.74,0.00033424,2]
[328144571,1716930718832,-1081.68,0.00033424,2]
[328144572,1716930718843,-2135.42,0.00033424,2]
[328144573,1716930718852,-618.90693851,0.00033424,2]
[328144574,1716930718861,-874.24,0.00033424,2]
[328144575,1716930718871,-832.12,0.00033424,2]
[328144576,1716930718881,-1494.87,0.00033424,2]
[328144577,1716930718890,-889.71,0.00033424,2]
[328144578,1716930718900,-588.22,0.00033424,2]
[328144579,1716930718909,-753.43,0.00033424,2]
[328144580,1716930718918,-500.0,0.00033424,2]
[328144581,1716930718927,-656.49,0.00033424,2]
[328144582,1716930718935,-1040.11,0.00033424,2]
[328144583,1716930718945,-5379.01,0.00033424,2]
[328144584,1716930718954,-1151.4,0.00033424,2]
[328144585,1716930718964,-657.54,0.00033424,2]
[328144586,1716930718973,-2503.88,0.00033424,2]
[328144587,1716930718982,-366.45558609,0.00033424,2]
[328144588,1716930718993,-523.58,0.00033424,2]
[328144589,1716930719002,-992.19,0.00033424,2]
[328144590,1716930719012,-591.51,0.00033424,2]
[328144591,1716930719022,-2469.11,0.00033424,2]
[328144592,1716930719031,-604.6,0.00033424,2]
[328144593,1716930719040,-1881.26,0.00033424,2]
[328144594,1716930719050,-1071.3,0.00033424,2]
[328144595,1716930719059,-1270.47,0.00033424,2]
[328144596,1716930719068,-8259.77,0.00033424,2]
[328144597,1716930719078,-1123.23,0.00033424,2]
[328144598,1716930719088,-2563.92,0.00033424,2]
[328144599,1716930719097,-1027.88,0.00033424,2]
[328144600,1716930719106,-772.72,0.00033424,2]
[328144601,1716930719116,-887.31,0.00033424,2]
[328144602,1716930719125,-914.87,0.00033424,2]
[328144603,1716930719134,-4971.2,0.00033424,2]
[328144604,1716930719143,-1127.13,0.00033424,2]
[328144605,1716930719152,-571.26,0.00033424,2]
[328144606,1716930719161,-590.27,0.00033424,2]
[328144607,1716930719171,-606.32,0.00033424,2]
[328144608,1716930719180,-824.0,0.00033424,2]
[328144609,1716930719189,-745.85,0.00033424,2]
[328144610,1716930719198,-853.64,0.00033424,2]
[328144611,1716930719207,-585.71,0.00033424,2]
[328144612,1716930719216,-1137.45,0.00033424,2]
[328144613,1716930719225,-539.51,0.00033424,2]
[328144614,1716930719235,-1448.06,0.00033424,2]
[328144615,1716930719244,-2302.76,0.00033424,2]
[328144616,1716930719253,-3336.18,0.00033424,2]
[328144617,1716930719262,-617.92090372,0.00033424,2]
[328144618,1716930719271,-1236.12,0.00033424,2]
[328144619,1716930719280,-885.34,0.00033424,2]
[328144620,1716930719289,-602.93,0.00033424,2]
[328144621,1716930719299,-1036.79,0.00033424,2]
[328144622,1716930719308,-13852.98,0.00033424,2]
[328144623,1716930719320,-1313.69,0.00033424,2]
[328144624,1716930719331,-1592.22,0.00033424,2]
[328144625,1716930719341,-1158.67,0.00033424,2]
[328144626,1716930719350,-916.61,0.00033424,2]
[328144627,1716930719361,-2650.73,0.00033424,2]
[328144628,1716930719371,-4639.4,0.00033424,2]
[328144629,1716930719380,-720.94,0.00033424,2]
[328144630,1716930719390,-850.51,0.00033424,2]
[328144631,1716930719403,-1212.71,0.00033424,2]
[328144632,1716930719413,-1305.79,0.00033424,2]
[328144633,1716930719423,-1077.58,0.00033424,2]
[328144634,1716930719432,-564.13,0.00033424,2]
[328144635,1716930719441,-789.13,0.00033424,2]
[328144636,1716930719450,-928.91,0.00033424,2]
[328144637,1716930719460,-920.12,0.00033424,2]
[328144638,1716930719468,-717.42,0.00033424,2]
[328144639,1716930719478,-881.35,0.00033424,2]
[328144640,1716930719487,-654.73,0.00033424,2]
[328144641,1716930719496,-500.0,0.00033424,2]
[328144642,1716930719505,-3338.18,0.00033424,2]
[328144643,1716930719514,-1966.13,0.00033424,2]
[328144644,1716930719524,-570.33,0.00033424,2]
[328144645,1716930719533,-1420.49,0.00033424,2]
[328144646,1716930719543,-1625.97,0.00033424,2]
[328144647,1716930719552,-647.0,0.00033424,2]
[328144648,1716930719561,-1101.55,0.00033424,2]
[328144649,1716930719570,-5271.34,0.00033424,2]
[328144650,1716930719580,-896.38,0.00033424,2]
[328144651,1716930719591,-4085.09,0.00033424,2]
[328144652,1716930719599,-3085.09,0.00033424,2]
[328144653,1716930719608,-1027.97,0.00033424,2]
[328144654,1716930719617,-678.18,0.00033424,2]
[328144655,1716930719626,-607.8,0.00033424,2]
[328144656,1716930719635,-2974.94,0.00033424,2]
[328144657,1716930719644,-1217.15,0.00033424,2]
[328144658,1716930719654,-1190.26,0.00033424,2]
[328144659,1716930719663,-592.19,0.00033424,2]
[328144660,1716930719672,-4371.46,0.00033424,2]
[328144661,1716930719682,-1044.37,0.00033424,2]
[328144662,1716930719691,-513.35,0.00033424,2]
[328144663,1716930719702,-1474.98,0.00033424,2]
[328144664,1716930719774,-3176.31,0.00033424,2]
[328144665,1716930719783,-687.58,0.00033424,2]
[328144666,1716930719794,-707.12,0.00033424,2]
[328144667,1716930719804,-3513.06,0.00033424,2]
[328144668,1716930719813,-150.0,0.00033443,2]
[328144669,1716930719822,-688.729831,0.00033452,5]
[328144670,1716930719831,-999.999999,0.00033456,31]
[328144671,1716930719842,-400.0,0.0003347,2]
[328144672,1716930719851,-400.0,0.0003347,2]
[328144673,1716930719860,-400.0,0.0003347,2]
[328144674,1716930719869,-3988.92354338,0.00033489,2]
[328144675,1716930719878,-9943.52368608,0.00033489,15]
[328144676,1716930719887,-963.39637826,0.00033489,20]
[328144677,1716930719896,-169039.48425493,0.00033489,2]
[328144678,1716930719905,-119252.22242183,0.00033489,2]
[328144679,1716930719915,-1210.0,0.00033489,2]
[328144680,1716930719924,-3595.51052118,0.00033489,2]
[328144681,1716930719933,-340.32679502,0.00033489,2]
[328144682,1716930719943,-2936.34256162,0.00033489,2]
[328144683,1716930719953,-4702.53878201,0.00033489,2]
[328144684,1716930719962,-222.81850633,0.00033489,2]
[328144685,1716930719971,-1485.57566935,0.00033489,2]
[328144686,1716930719980,-7204.72535237,0.00033489,2]
[328144687,1716930719989,-1006.309281,0.00033489,2]
[328144688,1716930719998,-7314.56318286,0.00033489,2]
[328144689,1716930720007,-5065.3132601,0.00033489,2]
[328144690,1716930720017,-93756.78035453,0.00033489,10]
[328144691,1716930720028,-2670.33666429,0.00033489,2]
[328144692,1716930720037,-6188.41280974,0.00033489,2]
[328144693,1716930720046,-2397.43456745,0.00033489,2]
[328144694,1716930720055,-5477.9810544,0.00033489,2]
[328144695,1716930720064,-2615.61579333,0.00033489,2]
[328144696,1716930720074,-134137.73156154,0.00033489,2]
[328144697,1716930720083,-3172.45607026,0.00033489,2]
[328144698,1716930720094,-7265.31066492,0.00033489,2]
[328144699,1716930720103,-160.26699978,0.00033489,2]
[328144700,1716930720112,-22267.82503767,0.00033489,2]
[328144701,1716930720121,-14777.21422521,0.00033489,2]
[328144702,1716930720131,-1044.14805398,0.00033489,2]
[328144703,1716930720140,-5831.18223806,0.00033489,2]
[328144704,1716930720149,-176.5941687,0.00033489,2]
[328144705,1716930720159,-850.01586043,0.00033489,2]
[328144706,1716930720168,-1021.39396156,0.00033489,2]
[328144707,1716930720177,-186.57515399,0.00033489,2]
[328144708,1716930720186,-9020.52341345,0.00033489,2]
[328144709,1716930720196,-1280.74000899,0.00033489,2]
[328144710,1716930720205,-4828.54118409,0.00033489,2]
[328144711,1716930720214,-290.13459785,0.00033489,2]
[328144712,1716930720223,-481.4729096,0.00033489,2]
[328144713,1716930720232,-12540.09294044,0.00033489,2]
[328144714,1716930720242,-1877.56404587,0.00033489,2]
[328144715,1716930720251,-5457.73140841,0.00033489,2]
[328144716,1716930720260,-643.0,0.00033489,2]
[328144717,1716930720269,-948.43153983,0.00033489,2]
[328144718,1716930720278,-8091.55284387,0.00033489,2]
[328144719,1716930720287,-1151.09969392,0.00033489,2]
[328144720,1716930720297,-560.19538555,0.00033489,2]
[328144721,1716930720306,-1795.93988277,0.00033489,2]
[328144722,1716930720316,-16367.29626512,0.00033489,2]
[328144723,1716930720328,-550.0,0.00033489,2]
[328144724,1716930720339,-985.6278439,0.00033489,2]
[328144725,1716930720348,-10466.67762943,0.00033489,2]
[328144726,1716930720358,-165709.2244013,0.00033489,2]
[328144727,1716930720367,-223.64444537,0.00033489,2]
[328144728,1716930720376,-14614.04434663,0.00033489,2]
[328144729,1716930720385,-6000.0,0.00033489,2]
[328144730,1716930720395,-1010.38738949,0.00033489,2]
[328144731,1716930720406,-10374.63996176,0.00033489,2]
[328144732,1716930720415,-14307.58596885,0.00033489,2]
[328144733,1716930720424,-550.71816297,0.00033489,2]
[328144734,1716930720433,-150.0,0.00033489,2]
[328144735,1716930720442,-639.76184381,0.00033489,2]
[328144736,1716930720450,-348.45493288,0.00033489,2]
[328144737,1716930720459,-7166.71091883,0.00033489,2]
[328144738,1716930720468,-612.61081168,0.00033489,2]
[328144739,1716930720478,-210.05589735,0.00033489,2]
[328144740,1716930720487,-150067.7664519,0.00033489,2]
[328144741,1716930720495,-439.64841428,0.00033489,2]
[328144742,1716930720504,-20782.29972471,0.00033489,2]
[328144743,1716930720513,-1043.72077115,0.00033489,2]
[328144744,1716930720522,-2500.0,0.00033489,2]
[328144745,1716930720530,-566.65071688,0.00033489,2]
[328144746,1716930720540,-23292.39758982,0.00033489,2]
[328144747,1716930720549,-2327.71968916,0.00033489,2]
[328144748,1716930720558,-235.41129931,0.00033489,2]
[328144749,1716930720567,-527.14507493,0.00033489,2]
[328144750,1716930720575,-408413.49464338,0.00033489,2]
[328144751,1716930720585,-10263.7092995,0.00033489,2]
[328144752,1716930720595,-892.36469452,0.00033489,2]
[328144753,1716930720604,-26974.37471379,0.00033489,2]
[328144754,1716930720613,-9322.61821223,0.00033489,2]
[328144755,1716930720622,-471.18653933,0.00033489,2]
[328144756,1716930720630,-387.22899686,0.00033489,2]
[328144757,1716930720639,-241.83291664,0.00033489,2]
[328144758,1716930720648,-14884.50385382,0.00033489,2]
[328144759,1716930720657,-21488.02136354,0.00033489,2]
[328144760,1716930720666,-318.72001205,0.00033489,2]
[328144761,1716930720675,-1775.46859865,0.00033489,2]
[328144762,1716930720684,-535.62480003,0.00033489,2]
[328144763,1716930720694,-4894.28853612,0.00033489,2]
[328144764,1716930720703,-356.72646966,0.00033489,2]
[328144765,1716930720711,-178.55904005,0.00033489,2]
[328144766,1716930720720,-596.00052476,0.00033489,2]
[328144767,1716930720730,-9548.06220838,0.00033489,2]
[328144768,1716930720739,-9301.35959473,0.00033489,2]
[328144769,1716930720748,-42062.35209422,0.00033489,2]
[328144770,1716930720757,-1391422.02145757,0.00033489,2]
[328144771,1716930720767,-19054.39774506,0.00033489,2]
[328144772,1716930720776,-1796.64202362,0.00033489,2]
[328144773,1716930720785,-339.52903776,0.00033489,2]
[328144774,1716930720794,-5063.25788709,0.00033489,2]
[328144775,1716930720803,-11586.1665982,0.00033489,2]
[328144776,1716930720812,-13000.0,0.00033489,2]
[328144777,1716930720820,-1010.69253146,0.00033489,2]
[328144778,1716930720830,-13744.01181894,0.00033489,2]
[328144779,1716930720839,-215.45658767,0.00033489,2]
[328144780,1716930720848,-1009.90839181,0.00033489,2]
[328144781,1716930720858,-23208.22234615,0.00033489,2]
[328144782,1716930720867,-5024.1565815,0.00033489,2]
[328144783,1716930720876,-150.0,0.00033489,3]
[328144784,1716930720886,-1175.99165693,0.00033489,2]
[328144785,1716930720895,-150.0,0.00033489,2]
[328144786,1716930720904,-150.0,0.00033489,2]
[328144787,1716930720914,-151.50539052,0.00033489,3]
[328144788,1716930720923,-14462.95681255,0.00033489,3]
[328144789,1716930720932,-5179.65661406,0.00033489,3]
[328144790,1716930720941,-54572.03657817,0.00033489,3]
[328144791,1716930720950,-3865.39140429,0.00033489,3]
[328144792,1716930720959,-1123.8,0.00033489,13]
[328144793,1716930720969,-951.31103312,0.00033489,4]
[328144794,1716930720978,-165.5,0.00033489,2]
[328144795,1716930720988,-22175.27124868,0.00033489,2]
[328144796,1716930720997,-1034.09,0.00033489,15]
[328144797,1716930721007,-59402.72461848,0.00033489,14]
[328144798,1716930721016,-896.88739,0.00033489,2]
[328144799,1716930721026,-50000.0,0.00033489,20]
[328144800,1716930721035,-50000.0,0.00033489,21]
[328144801,1716930721045,-50000.0,0.00033489,22]
[328144802,1716930721054,-50000.0,0.00033489,23]
[328144803,1716930721064,-50000.0,0.00033489,24]
[328144804,1716930721073,-50000.0,0.00033489,25]
[328144805,1716930721083,-156.23224767,0.00033489,2]
[328144806,1716930721094,-50000.0,0.00033489,26]
[328144807,1716930721103,-58040.9257487,0.00033489,2]
[328144808,1716930721112,-50000.0,0.00033489,27]
[328144809,1716930721122,-50000.0,0.00033489,28]
[328144810,1716930721132,-50000.0,0.00033489,29]
[328144811,1716930721141,-1314.60822105,0.00033489,2]
[328144812,1716930721151,-1245.90334096,0.00033489,4]
[328144813,1716930721160,-236.54742669,0.00033489,2]
[328144814,1716930721170,-2000.0,0.00033489,30]
[328144815,1716930721179,-2000.0,0.00033489,30]
[328144816,1716930721189,-4153.0,0.00033489,120]
[328144817,1716930721199,-2123.47275356,0.00033489,30]
[328144818,1716930721209,-1000.0,0.00033489,30]
[328144819,1716930721218,-1000.0,0.00033489,30]
[328144820,1716930721228,-1000.0,0.00033489,30]
[328144821,1716930721238,-1001.51750254,0.00033489,30]
[328144822,1716930721247,-1000.0,0.00033489,30]
[328144823,1716930721257,-1000.0,0.00033489,30]
[328144824,1716930721267,-1000.0,0.00033489,30]
[328144825,1716930721276,-1000.0,0.00033489,30]
[328144826,1716930721286,-1000.0,0.00033489,30]
[328144827,1716930721296,-1005.60161587,0.00033489,30]
[328144828,1716930721305,-1000.0,0.00033489,60]
[328144829,1716930721318,-1000.0,0.00033489,60]
[328144830,1716930721330,-1000.0,0.00033489,60]
[328144831,1716930721339,-1000.0,0.00033489,60]
[328144832,1716930721348,-1000.0,0.00033489,120]
[328144833,1716930721359,-1000.0,0.00033489,60]
[328144834,1716930721370,-1000.0,0.00033489,60]
[328144835,1716930721379,-1000.0,0.00033489,60]
[328144836,1716930721389,-1000.0,0.00033489,30]
[328144837,1716930721401,-1000.0,0.00033489,30]
[328144838,1716930721411,-1000.0,0.00033489,60]
[328144839,1716930721421,-1000.0,0.00033489,60]
[328144840,1716930721430,-1000.0,0.00033489,30]
[328144841,1716930721440,-1000.0,0.00033489,30]
[328144842,1716930721449,-1000.0,0.00033489,60]
[328144843,1716930721459,-1054.83873799,0.00033489,30]
[328144844,1716930721468,-1000.0,0.00033489,30]
[328144845,1716930721478,-1000.0,0.00033489,30]
[328144846,1716930721488,-1000.0,0.00033489,60]
[328144847,1716930721498,-1000.0,0.00033489,30]
[328144848,1716930721508,-1000.0,0.00033489,60]
[328144849,1716930721518,-1000.0,0.00033489,30]
[328144850,1716930721528,-1000.0,0.00033489,30]
[328144851,1716930721537,-1000.0,0.00033489,30]
[328144852,1716930721547,-1000.0,0.00033489,30]
[328144853,1716930721557,-1000.0,0.00033489,120]
[328144854,1716930721567,-1000.0,0.00033489,30]
[328144855,1716930721576,-1000.0,0.00033489,60]
[328144856,1716930721586,-1000.0,0.00033489,120]
[328144857,1716930721596,-1000.0,0.00033489,30]
[328144858,1716930721605,-1000.0,0.00033489,30]
[328144859,1716930721615,-1000.0,0.00033489,30]
[328144860,1716930721624,-2000.0,0.00033489,30]
[328144861,1716930721634,-2000.0,0.00033489,30]
[328144862,1716930721643,-2000.0,0.00033489,30]
[328144863,1716930721652,-2000.0,0.00033489,30]
[328144864,1716930721662,-1050.48,0.00033489,60]
[328144865,1716930721671,-1036.0,0.00033489,30]
[328144866,1716930721681,-2174.29532497,0.00033489,120]
[328144867,1716930721690,-1036.0,0.00033489,30]
[328144868,1716930721699,-1036.0,0.00033489,30]
[328144869,1716930721709,-1036.0,0.00033489,30]
[328144870,1716930721719,-1036.0,0.00033489,30]
[328144871,1716930721729,-1036.0,0.00033489,30]
[328144872,1716930721739,-1036.0,0.00033489,30]
[328144873,1716930721748,-1036.0,0.00033489,30]
[328144874,1716930721757,-1036.0,0.00033489,30]
[328144875,1716930721766,-1036.0,0.00033489,30]
[328144876,1716930721776,-1036.0,0.00033489,30]
[328144877,1716930721785,-1036.0,0.00033489,30]
[328144878,1716930721794,-1036.0,0.00033489,30]
[328144879,1716930721809,-1036.0,0.00033489,30]
[328144880,1716930721819,-1036.0,0.00033489,30]
[328144881,1716930721828,-1036.0,0.00033489,30]
[328144882,1716930721839,-1036.0,0.00033489,30]
[328144883,1716930721848,-1036.0,0.00033489,30]
[328144884,1716930721857,-1036.0,0.00033489,30]
[328144885,1716930721866,-1036.0,0.00033489,30]
[328144886,1716930721876,-1036.0,0.00033489,30]
[328144887,1716930721886,-1036.0,0.00033489,30]
[328144888,1716930721895,-1036.0,0.00033489,30]
[328144889,1716930721906,-1036.0,0.00033489,30]
[328144890,1716930721915,-1036.0,0.00033489,30]
[328144891,1716930721925,-1036.0,0.00033489,30]
[328144892,1716930721935,-1036.0,0.00033489,30]
[328144893,1716930721945,-1036.0,0.00033489,30]
[328144894,1716930721955,-1036.0,0.00033489,30]
[328144895,1716930721965,-1113.48736338,0.00033489,30]
[328144896,1716930721975,-1510.39414903,0.00033489,30]
[328144897,1716930721985,-5257.72503956,0.00033489,30]
[328144898,1716930721994,-235.39663806,0.00033489,30]
[328144899,1716930722004,-989.85622671,0.00033489,120]
[328144900,1716930722014,-1362.89680612,0.00033489,120]
[328144901,1716930722024,-1318.52405977,0.00033489,120]
[328144902,1716930722034,-3816.49983186,0.00033489,30]
[328144903,1716930722043,-1456.48330713,0.00033489,30]
[328144904,1716930722053,-507.96537016,0.00033489,120]
[328144905,1716930722062,-3227.12296924,0.00033489,15]
[328144906,1716930722072,-6349.84528249,0.00033489,120]
[328144907,1716930722081,-151.12712543,0.00033489,120]
[328144908,1716930722091,-1332.09225233,0.00033489,120]
[328144909,1716930722101,-1160.30500138,0.00033489,30]
[328144910,1716930722111,-5175.09698463,0.00033489,7]
[328144911,1716930722125,-230.79974955,0.00033489,120]
[328144912,1716930722135,-940.15207784,0.00033489,120]
[328144913,1716930722144,-2677.74155848,0.00033489,30]
[328144914,1716930722154,-1413.65594526,0.00033489,120]
[328144915,1716930722163,-200.46047162,0.00033489,30]
[328144916,1716930722173,-1041.12368445,0.00033489,120]
[328144917,1716930722183,-1247.45513364,0.00033489,120]
[328144918,1716930722192,-2226.90046443,0.00033489,60]
[328144919,1716930722202,-1487.3337144,0.00033489,30]
[328144920,1716930722211,-1452.93400958,0.00033489,120]
[328144921,1716930722221,-3427.92106427,0.00033489,120]
[328144922,1716930722230,-1384.02242691,0.00033489,30]
[328144923,1716930722239,-6570.93610441,0.00033489,4]
[328144924,1716930722249,-1087.30193082,0.00033489,30]
[328144925,1716930722258,-2501.90687329,0.00033489,5]
[328144926,1716930722267,-19782.34315616,0.00033489,4]
[328144927,1716930722277,-1413.56,0.00033489,30]
[328144928,1716930722286,-1553.73639375,0.00033489,120]
[328144929,1716930722295,-1008.3691049,0.00033489,120]
[328144930,1716930722305,-2001.14741843,0.00033489,120]
[328144931,1716930722315,-7543.06121791,0.00033489,2]
[328144932,1716930722328,-1024.399999,0.00033489,30]
[328144933,1716930722338,-1000.0,0.00033489,2]
[328144934,1716930722347,-1000.0,0.00033489,2]
[328144935,1716930722357,-1000.0,0.00033489,2]
[328144936,1716930722367,-1000.0,0.00033489,2]
[328144937,1716930722376,-1000.0,0.00033489,2]
[328144938,1716930722386,-1000.0,0.00033489,2]
[328144939,1716930722398,-1000.0,0.00033489,2]
[328144940,1716930722407,-1000.0,0.00033489,2]
[328144941,1716930722416,-1000.0,0.00033489,2]
[328144942,1716930722426,-1000.0,0.00033489,2]
[328144943,1716930722435,-1000.0,0.00033489,2]
[328144944,1716930722445,-1000.0,0.00033489,2]
[328144945,1716930722455,-1000.0,0.00033489,60]
[328144946,1716930722465,-1000.0,0.00033489,60]
[328144947,1716930722475,-1000.0,0.00033489,60]
[328144948,1716930722484,-1000.0,0.00033489,60]
[328144949,1716930722494,-1000.0,0.00033489,60]
[328144950,1716930722504,-1000.0,0.00033489,60]
[328144951,1716930722514,-1000.0,0.00033489,60]
[328144952,1716930722523,-1000.0,0.00033489,60]
[328144953,1716930722533,-1014.97679083,0.00033489,60]
[328144954,1716930722542,-150.0,0.00033489,2]
[328144955,1716930722552,-150.0,0.00033489,2]
[328144956,1716930722562,-150.0,0.00033489,2]
[328144957,1716930722572,-150.0,0.00033489,2]
[328144958,1716930722582,-150.0,0.00033489,2]
[328144959,1716930722592,-171.344474,0.00033489,2]